Cogmind - Beta 12 *** ADVENTURER MODE // 2023.03.08 @ 13:38:28 Player: RomanTheEvil Result: Destroyed by D-53 Grenadier with Mini Grenade Launcher Performance ------------- Evolutions (0) 0 Regions Visited (2) 400 Robots Destroyed (25) 125 Value Destroyed (671) 671 Prototype IDs (4) 80 Alien Tech Used (0) 0 Bonus (0) 0 TOTAL SCORE: 1276 Bonus ------- None Cogmind --------- Core Integrity 0/250 Matter 286/300 Energy 100/100 System Corruption 0% Temperature Cool (0) Movement Core (200) Ox3 Location -10/Mines Parts ------- > --- POWER (1) -------- (None) > --- PROPULSION (2) --- (None) > --- UTILITY (2) ------ Medium Storage Unit Signal Interpreter > --- WEAPON (2) ------- (None) > --- INVENTORY (10) --- Light Nuclear Core Aluminum Leg Aluminum Leg Aluminum Leg Sensor Array Grenade Launcher Grenade Launcher Grenade Launcher Grenade Launcher Peak State ------------ > --- POWER ------------ Light Ion Engine > --- PROPULSION ------- Aluminum Leg Aluminum Leg > --- UTILITY ---------- Medium Storage Unit Signal Interpreter > --- WEAPON ----------- Medium Laser Light Assault Rifle > --- INVENTORY -------- Light Nuclear Core Aluminum Leg Aluminum Leg Sensor Array Grenade Launcher Grenade Launcher Grenade Launcher Grenade Launcher [Rating: 8] Favorites ----------- Power Light Ion Engine Engine Light Ion Engine Propulsion Aluminum Leg Leg Aluminum Leg Utility Signal Interpreter Device Sensor Array Storage Medium Storage Unit Processor Signal Interpreter Weapon Medium Laser Energy Gun Medium Laser Ballistic Gun Light Assault Rifle Ballistic Cannon Light Cannon Build | -11 -10 -10 ------- Run | Jun Mat Min Slots Evolved . | . . . Power . | . . . Propulsion . | . . . Utility . | . . . Weapon . | . . . Parts Attached 19 | 5 11 3 Power 4 | 1 2 1 Engine 4 | 1 2 1 Core . | . . . Reactor . | . . . Propulsion 8 | 2 4 2 Treads . | . . . Leg 8 | 2 4 2 Wheel . | . . . Hover . | . . . Flight . | . . . Utility 3 | . 3 . Device 1 | . 1 . Storage 1 | . 1 . Processor 1 | . 1 . Hackware . | . . . Protection . | . . . Artifact . | . . . Weapon 4 | 2 2 . Energy Gun 2 | 1 1 . Energy Cannon . | . . . Ballistic Gun 1 | 1 . . Ballistic Cannon 1 | . 1 . Launcher . | . . . Special Weapon . | . . . Impact Weapon . | . . . Slashing Weapon . | . . . Piercing Weapon . | . . . Special Melee Weapon . | . . . Unidentified Prototypes . | . . . Parts Lost 5 | . . 5 Power 1 | . . 1 Propulsion 2 | . . 2 Utility . | . . . Weapon 2 | . . 2 Highest Loss Streak 5 | . . 5 To Critical Strikes . | . . . Average Slot Usage (%) 95 | . 94 98 Engine 13 | . 14 13 Leg 27 | . 27 27 Device 1 | . 2 . Storage 10 | . 8 14 Processor 11 | . 11 14 Energy Gun 13 | . 14 13 Ballistic Gun 6 | . 8 . Ballistic Cannon 7 | . 5 13 Naked Turns . | . . . Heaviest Build 18 | 8 18 18 Greatest Support 20 | 20 20 20 Greatest Overweight (x) 3 | . . 3 Average Overweight (x) . | . . . Largest Inventory Capacity 10 | 5 10 10 Average Capacity 8 | 5 8 10 Most Carried 10 | 1 10 10 Average Carried 7 | . 6 9 Final Capacity 10 | 5 10 10 Final Carried 10 | 1 10 9 Class Distribution -------------------- 58% | Mutant 41% | Scavenger-Mutant Dominant Class ---------------- Mutant | -10/Materials Scavenger-Mutant | -10/Mines Resources | -11 -10 -10 ----------- Run | Jun Mat Min Matter Collected 477 | 241 173 63 Remotely . | . . . Salvage Created 764 | . 598 166 Parts 49 | . 37 12 Haulers Intercepted 1 | . 1 . Recyclers Shooed . | . . . Parts Field Recycled . | . . . Retrieved Matter . | . . . Parts Self-Destructed . | . . . Prevented . | . . . Kills | -11 -10 -10 ------- Run | Jun Mat Min Combat Hostiles Destroyed 20 | . 13 7 Guns 10 | . 8 2 Cannons 8 | . 3 5 AOE 2 | . 2 . Classes Destroyed 5 | . 5 . Hauler 1 | . 1 . Recycler 1 | . 1 . Watcher 3 | . 3 . Swarmer 6 | . 3 3 Grunt 14 | . 10 4 Best Kill Streak 5 | . 5 3 Combat Bots Only 5 | . 5 3 Max Kills in Single Turn 3 | . 3 1 Gunslinging . | . . . Exploded 2 | . 2 . Melee . | . . . Uniques/NPCs Destroyed . | . . . Combat | -11 -10 -10 -------- Run | Jun Mat Min Damage Taken 1039 | . 255 784 Core 255 | . 48 207 Absorbed by Shields . | . . . Regen/Repaired (Parts) 77 | . 77 . Core Remaining (%) 100 | 100 . . Volleys Fired 55 | . 36 19 Largest 2 | . 2 2 Hottest 85 | . 85 85 Shots Fired 108 | . 72 36 Gun 84 | . 66 18 Cannon 24 | . 6 18 Launcher . | . . . Special . | . . . Kinetic 54 | . 36 18 Thermal 54 | . 36 18 Explosive . | . . . Electromagnetic . | . . . Robot Hit Streak 13 | . 13 12 Robot Miss Streak 3 | . 3 2 Penetration Max . | . . . Secondary Targets 1 | . 1 . Max Gunslinging Chain 1 | . 1 . Shots Hit Robots 78 | . 53 25 Core Hits 37 | . 27 10 Critical Kills 1 | . 1 . Critical Parts Destroyed . | . . . Critical Strikes 9 | . 7 2 Burn 7 | . 6 1 Destroy 1 | . 1 . Blast 1 | . . 1 Melee Attacks . | . . . Impact . | . . . Slashing . | . . . Piercing . | . . . Sneak Attacks . | . . . Combat Hostiles . | . . . Follow-up Attacks . | . . . Damage Inflicted 1418 | . 1010 408 Guns 678 | . 514 164 Cannons 345 | . 101 244 Explosions 395 | . 395 . Melee . | . . . Ramming . | . . . Kinetic 536 | . 292 244 Thermal 882 | . 718 164 Explosive . | . . . Electromagnetic . | . . . Impact . | . . . Slashing . | . . . Piercing . | . . . Highest Corruption . | . . . Average Corruption . | . . . Corruption Purged . | . . . Corruption Blocked . | . . . Overload Shots . | . . . Overflow Damage 87 | . 87 . Projectiles . | . . . Explosions 87 | . 87 . Melee . | . . . Knockbacks 4 | . 1 3 Impact . | . . . Kinetic 4 | . 1 3 Secondary . | . . . Self-Inflicted Damage . | . . . Shots . | . . . Rammed . | . . . Targets Rammed . | . . . Kicked . | . . . Crushed . | . . . Highest Temperature 176 | . 176 156 Average Temperature 56 | . 45 75 Received Heat Transfer 219 | . 147 72 Siege Activations . | . . . Robots Corrupted . | . . . Combat Hostiles . | . . . Parts Fried . | . . . Impact Corruptions . | . . . Robots Melted . | . . . Combat Hostiles . | . . . Parts Melted 1 | . . 1 Heat Transferred 2261 | . 1706 555 Parts Sabotaged . | . . . Parts Stolen . | . . . Parts Stripped . | . . . Power Chain Reactions . | . . . Missiles Intercepted . | . . . Alert | -11 -10 -10 ------- Run | Jun Mat Min Peak Influence 288 | . 288 232 Initial 20 | . . 20 Average 92 | . 81 144 Maximum Alert Level 1 | . 1 1 Low Security (%) 79 | 100 81 70 Level 1 20 | . 18 29 Level 2 . | . . . Level 3 . | . . . Level 4 . | . . . Level 5 . | . . . High Security . | . . . Max Security . | . . . Squads Dispatched 5 | . 4 1 Investigation 5 | . 4 1 Extermination . | . . . Reinforcement . | . . . Assault . | . . . Garrison . | . . . Intercept . | . . . Searches Triggered . | . . . Construction Impeded . | . . . Haulers Reinforced . | . . . Active Scanning Responses . | . . . Cargo Convoy Interrupts . | . . . Stealth | -11 -10 -10 --------- Run | Jun Mat Min Distress Signals 1 | . 1 . Communications Jammed . | . . . Distress Signals . | . . . Times Spotted 32 | . 15 17 Peak Tracking Total 8 | . 4 8 Tactical Retreats 1 | . . 1 Traps | -11 -10 -10 ------- Run | Jun Mat Min Traps Triggered 3 | . 3 . Indirectly . | . . . Trap Hack Attempts . | . . . Triggered . | . . . Disarmed . | . . . Reprogrammed . | . . . Reused . | . . . Traps Extracted . | . . . Installed . | . . . Triggered . | . . . Machines | -11 -10 -10 ---------- Run | Jun Mat Min Machines Disabled 4 | . 4 . Max in Single Turn 4 | . 4 . Machines Repaired . | . . . Machines Sabotaged . | . . . Overloaded Fab Kills . | . . . Hacking | -11 -10 -10 --------- Run | Jun Mat Min Machines Accessed 10 | . 9 1 Terminals 8 | . 7 1 Fabricators . | . . . Repair Stations 1 | . 1 . Recycling Units 1 | . 1 . Scanalyzers . | . . . Garrison Access . | . . . Total Hacks 42 | . 37 5 Successful 29 | . 26 3 Failed 13 | . 11 2 Catastrophic 2 | . 1 1 Database Lockouts . | . . . Manual 15 | . 10 5 Terminals 31 | . 26 5 Fabricators . | . . . Repair Stations 9 | . 9 . Recycling Units 2 | . 2 . Scanalyzers . | . . . Garrison Access . | . . . Terminal Hacks 19 | . 16 3 Record 3 | . 3 . Prototype ID Bank 4 | . 4 . Branch Access Points 1 | . . 1 Terminal Index 2 | . 1 1 Scanalyzer Index 1 | . . 1 Alert Level 1 | . 1 . Unreport Threat 1 | . 1 . Locate Traps 2 | . 2 . Transport Status 1 | . 1 . Hauler Manifests 1 | . 1 . Registered Components 1 | . 1 . Registered Prototypes 1 | . 1 . Fabricator Hacks . | . . . Repair Station Hacks 8 | . 8 . Scan Component 4 | . 4 . Repair 4 | . 4 . Recycling Unit Hacks 1 | . 1 . Report Inventory 1 | . 1 . Scanalyzer . | . . . Garrison Access Hacks . | . . . Unauthorized Hacks 1 | . 1 . Terminals . | . . . Fabricators . | . . . Repair Stations . | . . . Recycling Units 1 | . 1 . Mask 1 | . 1 . Scanalyzers . | . . . Garrison Access . | . . . Data Cores Recovered . | . . . Used . | . . . Hacking Detections 9 | . 8 1 Full Trace Events 5 | . 4 1 Feedback Events . | . . . Feedback Blocked . | . . . Robot Schematics Acquired . | . . . Robots Built . | . . . Authchips . | . . . Time . | . . . Total Robot Build Rating . | . . . Part Schematics Acquired . | . . . Parts Built . | . . . Authchips . | . . . Time . | . . . Total Part Build Rating . | . . . Parts Repaired 4 | . 4 . Time 116 | . 116 . Parts Recycled . | . . . Recycled Matter . | . . . Retrieved Matter . | . . . Retrieved Components . | . . . Parts Scanalyzed . | . . . Part Schematics Acquired . | . . . Parts Damaged . | . . . Bothacking | -11 -10 -10 ------------ Run | Jun Mat Min Used RIF Installer . | . . . Robots Hacked . | . . . Non-combat . | . . . Combat . | . . . Robot Hacks Applied . | . . . Relay Couplers Released . | . . . Fabnet Peak Effective % . | . . . Robots Rewired . | . . . Allies Hacked . | . . . Hacks Repelled . | . . . Allies | -11 -10 -10 -------- Run | Jun Mat Min Total Allies . | . . . Largest Group . | . . . Highest-Rated Group . | . . . Highest-Rated Ally . | . . . Total Orders . | . . . Ally Attacks . | . . . Total Damage . | . . . Kills . | . . . Allies Corrupted . | . . . Allies Melted . | . . . Intel | -11 -10 -10 ------- Run | Jun Mat Min Robot Analysis Total . | . . . Derelict Logs Recovered 1 | . . 1 Drone Launches . | . . . Drone Recoveries . | . . . Exploration | -11 -10 -10 ------------- Run | Jun Mat Min Turns Passed 1577 | 58 1180 339 Spaces Moved 1011 | 42 741 228 Core 8 | 4 . 4 Treads . | . . . Legs 1003 | 38 741 224 Wheels . | . . . Hover . | . . . Flight . | . . . Fastest Speed 50 | 50 120 120 Average Speed 120 | 113 120 121 Slowest Speed 200 | 120 120 200 Overloaded Moves . | . . . Propulsion Burnouts . | . . . Robots Hopped . | . . . Cave-ins Triggered . | . . . Exploration Rate (%) 51 | 4 98 53 Regions Visited 2 Branch Regions 1 Pre-discovered Areas 1 | . . 1 Known Exits Taken 1 | . 1 . Unknown Exits Taken 1 | 1 . . Scrap Searched . | . . . Spaces Dug . | . . . Terrain Destroyed 6 | . 6 . Melee . | . . . Projectile . | . . . AOE 6 | . 6 . Terrain Rammed . | . . . Walls Destroyed . | . . . Machines Disabled . | . . . Actions | -11 -10 -10 --------- Run | Jun Mat Min Total 1272 | 52 965 255 Wait 158 | . 156 2 Move 1009 | 41 740 228 Hop . | . . . Pick Up 23 | 6 17 . Fast Attach 1 | . 1 . Attach 7 | 5 2 . Detach . | . . . Swap 11 | . 8 3 Drop 8 | . 5 3 Fire 55 | . 36 19 Melee . | . . . Ram . | . . . Kick . | . . . Crush . | . . . Escape Stasis . | . . . Rewire . | . . . Trap . | . . . Miscellaneous . | . . . Route ------- -11/Junkyard -10/Materials (discovered 4 exits: *Mat x3 / *Min) -10/Mines History --------- Turn | Location | Event 6 | -11/Junkyard | Discovered new exit (range 16) 59 | -11/Junkyard | Entered Materials 303 | -10/Materials | Build established: Mutant 304 | -10/Materials | Discovered new exit (range 16) 360 | -10/Materials | Identified exit to Materials 729 | -10/Materials | Discovered exit to Materials (range 10) 885 | -10/Materials | Discovered exit to Materials (range 15) 1051 | -10/Materials | Discovered new exit (range 12) 1119 | -10/Materials | Repaired Lgt. Nuclear Core 1146 | -10/Materials | Repaired Aluminum Leg 1174 | -10/Materials | Repaired Aluminum Leg 1202 | -10/Materials | Repaired Aluminum Leg 1238 | -10/Materials | Identified exit to Mines 1239 | -10/Materials | Entered Mines 1265 | -10/Mines | Learned location of Zion (-6) 1462 | -10/Mines | Build established: Scavenger-Mutant 1529 | -10/Mines | Assembled infested the area 1534 | -10/Mines | Assisted by a Guerilla fighting off Assembled 1544 | -10/Mines | Received a Rocket Launcher from a helpful Derelict 1573 | -10/Mines | Core integrity fell below 50% 1577 | -10/Mines | Core integrity fell below 20% 1578 | -10/Mines | Destroyed by D-53 Grenadier with Mini Grenade Launcher Last Messages --------------- 01566_ U-05 Engineer lays Concrete. 01566_ U-05 Engineer destroyed. 01567_ U-05 Engineer lays Concrete. 01568_ Med. Laser destroyed. 01568_ Aluminum Leg destroyed. 01568_ as-34765 destroyed. 01568_ U-05 Engineer lays Concrete. 01568_ K-01 Serf collects debris. 01569_ U-05 Engineer lays Concrete. 01570_ The unstable cave ceiling collapses. 01570_ Aluminum Leg destroyed. 01571_ U-05 Engineer lays Concrete. 01571_ K-01 Serf collects debris. 01572_ U-05 Engineer lays Concrete. 01574_ as-37124 destroyed. 01574_ K-01 Serf collects debris. 01575_ U-05 Engineer lays Concrete. 01576_ The unstable cave ceiling collapses. 01577_ U-05 Engineer lays Concrete. 01578_ K-01 Serf collects debris. Map ----- +----------------------------------------------------+ | ???????????????????????? ?????????????????????## | | ???????????????????????? ????????????????????## | | ???????????????????????? ????????????????????# | | ???????????????????????? ????????????????????# | | ????????????????????????#???????????????????## | | ??????????????????? ????????????????????????# | | ????????????????? ???????????????????????# | | ???????????????# #??####????????????????## # | | ???????????????# ### ##????????????????# ### | | ??????????????? #????????????????# #?? | | ???????????????? % #????????????????# #?? | | ?????????????????# #????######??????# #?? | | ?????????????????# #??### ##?????# #?? | | ????????????###### #### ###???# #?? | | ???????????? u # #?### #?? | | ???????????? ### #?? | | ??????????????# ! ] ## ###?? | | ??????????????# % =% #???? | | ???????????????# * d #???? | | ????????????????# % k ####???? | | ????????????????## ] ##??????? | | ?????????????????# # ##???????? | | ????????????????# # # # #????????? | | ???????????????# ?# # #????????? | | ???????????????# ??### ## #####????????? | | ???????????????????# @ ########????????????? | | ???????????????????# a #?????????????? | | ???????????????????# # #????????????? | | ???????????????????# ###### ## #???????????? | | ???????????????????#??????## ##?? #?????????? | | ???????????????????????????# #???? a??????????? | | ???????????????????????????? #????? ??????????? | | ???????????????????????????? ?????? ???????????? | | ????????????????????????????##???????????????????? | | ?????????????????????????????????????????????????? | | ?????????????????????????????????????????????????? | | ?????????????????????????????????????????????????? | | ?????????????????????????????????????????????????? | | ?????????????????????????????????????????????????? | | ?????????????????????????????????????????????????? | | ?????????????????????????????????????????????????? | | ?????????????????????????????????????????????????? | | ?????????????????????????????????????????????????? | | | | | | | | | | | | | | | +----------------------------------------------------+ Best States ------------- Heat Dissipation 25 Energy Generation 10 Energy Capacity 250 Matter Stores 300 Matter Capacity 300 Sight Range 16 Robot Scan Range 14 Terrain Scan Density 10 Resistance: KI 20 Resistance: TH 20 Resistance: EX 20 Resistance: EM 20 Resistance: I 20 Resistance: S 20 Resistance: P 20 Evasion (%) 55 Offensive Hacking 10 Item Schematics ----------------- None Robot Schematics ------------------ None Fabricated ------------ Nothing Alien Tech Used ----------------- None Achievements -------------- None Challenges ------------ None Game ------ Seed CentriumGhostSteel Manual? 0 Play Time 00:30:14 Cumulative 19.0 hours Start 2023.03.08 @ 12:26:05 End 2023.03.08 @ 13:38:28 Sessions 3 Manual Loads 0 Difficulty Adventurer Special Mode None Game No. 17 Rogue 0 Adventurer 17 Explorer 0 Win Type - Total 0 Types 0/0/0/0/0/0/0/0/0 Lore% 29 Gallery% 18 Achievement% 23 Wizard Run 0 Options --------- ASCII 0 Keyboard 0 Movement Mouse Keybinds 0 Fullscreen 1 Font 16/SmallcapsGlow Map View 76x50 Tactical HUD 1 Map Filters NONE Filters NONE Steam 1 RUN: ae8475a4-b7f5-478b-bc10-0632bac5eb5c